[Event "January 9 Late 2024"]
[Site "https://www.chess.com"]
[Date "2024.01.09"]
[Round "10"]
[White "Mendez Fortes, Eduardo Jesus"]
[Black "Reprintsev, Alexander"]
[Result "1-0"]
[Board "63"]
[TimeControl "180+1"]
[WhiteFideId "3502376"]
[BlackFideId "14100541"]
[WhiteElo "2572"]
[BlackElo "2491"]
[WhiteTeam "CUB"]
[BlackTeam "UKR"]
[WhiteClock "0:00:06"]
[BlackClock "0:00:00"]

1. e4 {[%clk 0:03:00]}  d5 {[%clk 0:02:59]} 2. exd5 {[%clk 0:03:00]}  Qxd5 {[%clk 0:02:59]} 3. Nc3 {[%clk 0:03:01]}  Qa5 {[%clk 0:02:59]} 4. d4 {[%clk 0:03:01]}  Nf6 {[%clk 0:03:00]} 5. Bc4 {[%clk 0:03:01]}  Nc6 {[%clk 0:02:59]} 6. Ne2 {[%clk 0:02:57]}  Be6 {[%clk 0:02:55]} 7. Bxe6 {[%clk 0:02:57]}  fxe6 {[%clk 0:02:56]} 8. Bd2 {[%clk 0:02:55]}  O-O-O {[%clk 0:02:56]} 9. a4 {[%clk 0:02:52]}  Qh5 {[%clk 0:02:55]} 10. Be3 {[%clk 0:02:50]}  e5 {[%clk 0:02:54]} 11. d5 {[%clk 0:02:20]}  e6 {[%clk 0:02:53]} 12. dxc6 {[%clk 0:02:20]}  Rxd1+ {[%clk 0:02:52]} 13. Rxd1 {[%clk 0:02:21]}  Bb4 {[%clk 0:02:47]} 14. O-O {[%clk 0:02:20]}  Nd5 {[%clk 0:02:41]} 15. cxb7+ {[%clk 0:02:17]}  Kxb7 {[%clk 0:02:41]} 16. Nxd5 {[%clk 0:02:16]}  exd5 {[%clk 0:02:39]} 17. Rxd5 {[%clk 0:02:14]}  Qxe2 {[%clk 0:02:30]} 18. Rb5+ {[%clk 0:02:15]}  Ka8 {[%clk 0:02:25]} 19. Rxb4 {[%clk 0:02:14]}  Rb8 {[%clk 0:02:18]} 20. Re4 {[%clk 0:02:12]}  Qxc2 {[%clk 0:02:13]} 21. Rxe5 {[%clk 0:02:11]}  Qxa4 {[%clk 0:02:13]} 22. Re7 {[%clk 0:02:09]}  Rxb2 {[%clk 0:02:05]} 23. Rxc7 {[%clk 0:02:04]}  Rb7 {[%clk 0:02:04]} 24. Rc8+ {[%clk 0:02:03]}  Rb8 {[%clk 0:02:04]} 25. Rcc1 {[%clk 0:02:02]}  Qe4 {[%clk 0:01:55]} 26. Ra1 {[%clk 0:02:01]}  Rb7 {[%clk 0:01:55]} 27. Rfe1 {[%clk 0:01:59]}  Qg6 {[%clk 0:01:50]} 28. Red1 {[%clk 0:01:56]}  Qf6 {[%clk 0:01:45]} 29. Rac1 {[%clk 0:01:54]}  a5 {[%clk 0:01:40]} 30. Rd5 {[%clk 0:01:44]}  Qa6 {[%clk 0:01:25]} 31. Ra1 {[%clk 0:01:26]}  a4 {[%clk 0:01:23]} 32. Rd2 {[%clk 0:01:12]}  h6 {[%clk 0:01:16]} 33. h3 {[%clk 0:01:11]}  g5 {[%clk 0:01:14]} 34. Kh2 {[%clk 0:00:58]}  Rb5 {[%clk 0:01:11]} 35. Rd4 {[%clk 0:00:54]}  a3 {[%clk 0:01:07]} 36. Rd2 {[%clk 0:00:46]}  Kb7 {[%clk 0:00:59]} 37. Rda2 {[%clk 0:00:43]}  Rb3 {[%clk 0:00:57]} 38. g3 {[%clk 0:00:42]}  h5 {[%clk 0:00:53]} 39. Bc5 {[%clk 0:00:40]}  h4 {[%clk 0:00:51]} 40. Rxa3 {[%clk 0:00:32]}  Rxa3 {[%clk 0:00:50]} 41. Rxa3 {[%clk 0:00:32]}  Qe2 {[%clk 0:00:47]} 42. Be3 {[%clk 0:00:28]}  hxg3+ {[%clk 0:00:44]} 43. Kxg3 {[%clk 0:00:27]}  Qb5 {[%clk 0:00:37]} 44. Ra7+ {[%clk 0:00:22]}  Kc6 {[%clk 0:00:37]} 45. Kg4 {[%clk 0:00:21]}  Kd6 {[%clk 0:00:31]} 46. Rg7 {[%clk 0:00:20]}  Ke6 {[%clk 0:00:25]} 47. Rxg5 {[%clk 0:00:20]}  Qe2+ {[%clk 0:00:25]} 48. Kg3 {[%clk 0:00:19]}  Kf6 {[%clk 0:00:24]} 49. Rg4 {[%clk 0:00:19]}  Qd1 {[%clk 0:00:22]} 50. Kg2 {[%clk 0:00:18]}  Qd5+ {[%clk 0:00:20]} 51. Kh2 {[%clk 0:00:18]}  Qd6+ {[%clk 0:00:19]} 52. Bf4 {[%clk 0:00:18]}  Qc5 {[%clk 0:00:18]} 53. Bg3 {[%clk 0:00:17]}  Qc1 {[%clk 0:00:15]} 54. h4 {[%clk 0:00:16]}  Qd1 {[%clk 0:00:14]} 55. Rg5 {[%clk 0:00:14]}  Qf3 {[%clk 0:00:13]} 56. Re5 {[%clk 0:00:11]}  Kg6 {[%clk 0:00:10]} 57. Rg5+ {[%clk 0:00:11]}  Kh7 {[%clk 0:00:09]} 58. Re5 {[%clk 0:00:11]}  Qd1 {[%clk 0:00:09]} 59. Re3 {[%clk 0:00:11]}  Qg4 {[%clk 0:00:08]} 60. Kg2 {[%clk 0:00:11]}  Qd7 {[%clk 0:00:07]} 61. Re5 {[%clk 0:00:11]}  Qc6+ {[%clk 0:00:06]} 62. Kh3 {[%clk 0:00:11]}  Qc8+ {[%clk 0:00:06]} 63. Kh2 {[%clk 0:00:11]}  Qc2 {[%clk 0:00:05]} 64. h5 {[%clk 0:00:10]}  Qd3 {[%clk 0:00:03]} 65. Bf4 {[%clk 0:00:10]}  Qf3 {[%clk 0:00:00]} 66. Bg3 {[%clk 0:00:06]} 1-0

[Event "January 9 Late 2024"]
[Site "https://www.chess.com"]
[Date "2024.01.10"]
[Round "10"]
[White "Hoeffer, David"]
[Black "Yurasov, Matfey"]
[Result "0-1"]
[Board "64"]
[TimeControl "180+1"]
[WhiteFideId "24606766"]
[BlackFideId "55617603"]
[WhiteElo "2473"]
[BlackElo "2571"]
[WhiteTeam "GER"]
[BlackTeam "FID"]
[WhiteClock "0:01:36"]
[BlackClock "0:01:41"]

1. e4 {[%clk 0:03:00]}  e5 {[%clk 0:02:58]} 2. Nf3 {[%clk 0:03:00]}  Nf6 {[%clk 0:02:59]} 3. d4 {[%clk 0:02:58]}  Nxe4 {[%clk 0:02:58]} 4. dxe5 {[%clk 0:02:58]}  d5 {[%clk 0:02:56]} 5. Bd3 {[%clk 0:02:58]}  Nc5 {[%clk 0:02:55]} 6. O-O {[%clk 0:02:57]}  Nxd3 {[%clk 0:02:55]} 7. Qxd3 {[%clk 0:02:58]}  Be7 {[%clk 0:02:54]} 8. c3 {[%clk 0:02:58]}  O-O {[%clk 0:02:54]} 9. g3 {[%clk 0:02:57]}  c5 {[%clk 0:02:53]} 10. h4 {[%clk 0:02:57]}  h6 {[%clk 0:02:50]} 11. Bf4 {[%clk 0:02:55]}  Nc6 {[%clk 0:02:49]} 12. Nbd2 {[%clk 0:02:55]}  Bg4 {[%clk 0:02:47]} 13. Nh2 {[%clk 0:02:54]}  Be6 {[%clk 0:02:46]} 14. Rad1 {[%clk 0:02:51]}  Qd7 {[%clk 0:02:44]} 15. f3 {[%clk 0:02:49]}  Rad8 {[%clk 0:02:42]} 16. Qe2 {[%clk 0:02:45]}  Qc8 {[%clk 0:02:38]} 17. Qf2 {[%clk 0:02:46]}  f6 {[%clk 0:02:36]} 18. exf6 {[%clk 0:02:45]}  Bxf6 {[%clk 0:02:37]} 19. Qxc5 {[%clk 0:02:42]}  d4 {[%clk 0:02:32]} 20. Ne4 {[%clk 0:02:40]}  Be7 {[%clk 0:02:31]} 21. Qh5 {[%clk 0:02:36]}  Rd5 {[%clk 0:02:21]} 22. Bg5 {[%clk 0:02:23]}  hxg5 {[%clk 0:02:19]} 23. Nxg5 {[%clk 0:02:22]}  Bxg5 {[%clk 0:02:18]} 24. hxg5 {[%clk 0:02:23]}  Bf7 {[%clk 0:02:12]} 25. Qh4 {[%clk 0:02:19]}  Qf5 {[%clk 0:02:12]} 26. f4 {[%clk 0:02:17]}  dxc3 {[%clk 0:02:02]} 27. bxc3 {[%clk 0:02:15]}  Rxd1 {[%clk 0:02:01]} 28. Rxd1 {[%clk 0:02:16]}  Qc2 {[%clk 0:02:00]} 29. Rd7 {[%clk 0:01:59]}  Re8 {[%clk 0:01:54]} 30. Nf3 {[%clk 0:01:55]}  Re2 {[%clk 0:01:46]} 31. Kh1 {[%clk 0:01:39]}  Qb1+ {[%clk 0:01:40]} 32. Ng1 {[%clk 0:01:36]}  Qe4+ {[%clk 0:01:41]} 0-1

[Event "January 9 Late 2024"]
[Site "https://www.chess.com"]
[Date "2024.01.09"]
[Round "10"]
[White "Nikologorsky, Matfei"]
[Black "Tulchynskyi, Feliks"]
[Result "1-0"]
[Board "65"]
[TimeControl "180+1"]
[WhiteFideId "24102474"]
[BlackFideId "34127895"]
[WhiteElo "2469"]
[BlackElo "2570"]
[WhiteTeam "FID"]
[BlackTeam "UKR"]
[WhiteClock "0:00:17"]
[BlackClock "0:00:23"]

1. e4 {[%clk 0:03:00]}  e6 {[%clk 0:02:47]} 2. d4 {[%clk 0:03:00]}  d5 {[%clk 0:02:48]} 3. Nd2 {[%clk 0:03:00]}  c5 {[%clk 0:02:47]} 4. Ngf3 {[%clk 0:02:57]}  Nf6 {[%clk 0:02:44]} 5. exd5 {[%clk 0:02:58]}  Nxd5 {[%clk 0:02:43]} 6. Bb5+ {[%clk 0:02:54]}  Bd7 {[%clk 0:02:42]} 7. Bxd7+ {[%clk 0:02:50]}  Nxd7 {[%clk 0:02:43]} 8. O-O {[%clk 0:02:50]}  cxd4 {[%clk 0:02:42]} 9. Nxd4 {[%clk 0:02:44]}  Bc5 {[%clk 0:02:36]} 10. Ne4 {[%clk 0:02:41]}  Be7 {[%clk 0:02:27]} 11. Qg4 {[%clk 0:02:13]}  g6 {[%clk 0:02:15]} 12. Nxe6 {[%clk 0:02:00]}  fxe6 {[%clk 0:02:14]} 13. Qxe6 {[%clk 0:02:01]}  Nf8 {[%clk 0:01:28]} 14. Qe5 {[%clk 0:01:51]}  Kf7 {[%clk 0:01:28]} 15. Rd1 {[%clk 0:01:44]}  Ne6 {[%clk 0:01:15]} 16. Rxd5 {[%clk 0:01:37]}  Qc7 {[%clk 0:01:15]} 17. Bf4 {[%clk 0:01:16]}  Qxe5 {[%clk 0:01:14]} 18. Bxe5 {[%clk 0:01:17]}  Rhd8 {[%clk 0:01:13]} 19. Rad1 {[%clk 0:01:16]}  Rac8 {[%clk 0:01:13]} 20. Rxd8 {[%clk 0:01:15]}  Nxd8 {[%clk 0:01:11]} 21. c3 {[%clk 0:01:13]}  Nc6 {[%clk 0:01:11]} 22. Bf4 {[%clk 0:01:09]}  Ke6 {[%clk 0:01:11]} 23. g3 {[%clk 0:01:04]}  Kf5 {[%clk 0:01:09]} 24. Nd6+ {[%clk 0:01:02]}  Bxd6 {[%clk 0:01:09]} 25. Rxd6 {[%clk 0:01:03]}  Re8 {[%clk 0:01:06]} 26. Kf1 {[%clk 0:01:02]}  Re7 {[%clk 0:01:04]} 27. f3 {[%clk 0:01:00]}  h5 {[%clk 0:01:04]} 28. b4 {[%clk 0:00:56]}  a6 {[%clk 0:00:59]} 29. a4 {[%clk 0:00:56]}  Na7 {[%clk 0:00:57]} 30. Rd5+ {[%clk 0:00:55]}  Ke6 {[%clk 0:00:56]} 31. Re5+ {[%clk 0:00:56]}  Kf7 {[%clk 0:00:57]} 32. Rxe7+ {[%clk 0:00:56]}  Kxe7 {[%clk 0:00:57]} 33. Ke2 {[%clk 0:00:56]}  Ke6 {[%clk 0:00:58]} 34. Kd3 {[%clk 0:00:57]}  Nc6 {[%clk 0:00:53]} 35. b5 {[%clk 0:00:55]}  axb5 {[%clk 0:00:53]} 36. axb5 {[%clk 0:00:56]}  Na5 {[%clk 0:00:51]} 37. Be3 {[%clk 0:00:51]}  Kd5 {[%clk 0:00:50]} 38. Bd4 {[%clk 0:00:45]}  Nc4 {[%clk 0:00:50]} 39. h4 {[%clk 0:00:42]}  Nd6 {[%clk 0:00:50]} 40. b6 {[%clk 0:00:38]}  Nc4 {[%clk 0:00:48]} 41. g4 {[%clk 0:00:37]}  Nd6 {[%clk 0:00:48]} 42. Ke3 {[%clk 0:00:33]}  Ke6 {[%clk 0:00:39]} 43. Kf4 {[%clk 0:00:32]}  Nf7 {[%clk 0:00:38]} 44. c4 {[%clk 0:00:29]}  hxg4 {[%clk 0:00:35]} 45. fxg4 {[%clk 0:00:29]}  Kd6 {[%clk 0:00:34]} 46. h5 {[%clk 0:00:27]}  gxh5 {[%clk 0:00:33]} 47. gxh5 {[%clk 0:00:28]}  Ke6 {[%clk 0:00:33]} 48. c5 {[%clk 0:00:27]}  Kd5 {[%clk 0:00:31]} 49. Bf2 {[%clk 0:00:27]}  Ke6 {[%clk 0:00:30]} 50. c6 {[%clk 0:00:25]}  Nd6 {[%clk 0:00:30]} 51. Bc5 {[%clk 0:00:18]}  bxc6 {[%clk 0:00:21]} 52. Bxd6 {[%clk 0:00:18]}  Kxd6 {[%clk 0:00:22]} 53. h6 {[%clk 0:00:19]}  c5 {[%clk 0:00:23]} 54. h7 {[%clk 0:00:19]}  c4 {[%clk 0:00:23]} 55. h8=Q {[%clk 0:00:20]}  Kc6 {[%clk 0:00:24]} 56. Qf6+ {[%clk 0:00:19]}  Kb5 {[%clk 0:00:24]} 57. b7 {[%clk 0:00:19]}  Kc5 {[%clk 0:00:22]} 58. b8=Q {[%clk 0:00:19]}  Kd5 {[%clk 0:00:23]} 59. Qb5# {[%clk 0:00:17]} 1-0

[Event "January 9 Late 2024"]
[Site "https://www.chess.com"]
[Date "2024.01.09"]
[Round "10"]
[White "Rees, Ioan"]
[Black "Van Dael, Siem"]
[Result "1-0"]
[Board "66"]
[TimeControl "180+1"]
[WhiteFideId "1801236"]
[BlackFideId "1049771"]
[WhiteElo "2413"]
[BlackElo "2568"]
[WhiteTeam "WLS"]
[BlackTeam "NED"]
[WhiteClock "0:01:13"]
[BlackClock "0:00:29"]

1. Nf3 {[%clk 0:02:55]}  Nf6 {[%clk 0:02:59]} 2. d4 {[%clk 0:02:54]}  d5 {[%clk 0:03:00]} 3. c4 {[%clk 0:02:53]}  c6 {[%clk 0:03:00]} 4. cxd5 {[%clk 0:02:52]}  cxd5 {[%clk 0:02:59]} 5. Nc3 {[%clk 0:02:52]}  Nc6 {[%clk 0:02:59]} 6. Bf4 {[%clk 0:02:53]}  a6 {[%clk 0:02:58]} 7. Ne5 {[%clk 0:02:53]}  Bd7 {[%clk 0:02:56]} 8. e3 {[%clk 0:02:51]}  e6 {[%clk 0:02:55]} 9. Bd3 {[%clk 0:02:49]}  Be7 {[%clk 0:02:49]} 10. O-O {[%clk 0:02:49]}  O-O {[%clk 0:02:50]} 11. Rc1 {[%clk 0:02:47]}  Rc8 {[%clk 0:02:49]} 12. Bb1 {[%clk 0:02:42]}  g6 {[%clk 0:02:40]} 13. a3 {[%clk 0:02:41]}  Nxe5 {[%clk 0:02:39]} 14. Bxe5 {[%clk 0:02:39]}  Ne8 {[%clk 0:02:32]} 15. h3 {[%clk 0:02:36]}  f6 {[%clk 0:02:32]} 16. Bg3 {[%clk 0:02:34]}  Bd6 {[%clk 0:02:32]} 17. f4 {[%clk 0:02:30]}  Bc6 {[%clk 0:02:30]} 18. Bh4 {[%clk 0:02:30]}  Ng7 {[%clk 0:02:28]} 19. g4 {[%clk 0:02:28]}  Qb6 {[%clk 0:02:18]} 20. Rf2 {[%clk 0:02:19]}  f5 {[%clk 0:02:16]} 21. Bg5 {[%clk 0:02:14]}  Rf7 {[%clk 0:02:04]} 22. Bh6 {[%clk 0:02:10]}  Bf8 {[%clk 0:01:59]} 23. Bxg7 {[%clk 0:02:04]}  Bxg7 {[%clk 0:01:58]} 24. h4 {[%clk 0:02:02]}  Rcf8 {[%clk 0:01:48]} 25. h5 {[%clk 0:02:00]}  gxh5 {[%clk 0:01:32]} 26. g5 {[%clk 0:01:55]}  h6 {[%clk 0:01:25]} 27. Qxh5 {[%clk 0:01:53]}  hxg5 {[%clk 0:01:22]} 28. fxg5 {[%clk 0:01:45]}  Qc7 {[%clk 0:01:16]} 29. g6 {[%clk 0:01:32]}  Bf6 {[%clk 0:00:45]} 30. gxf7+ {[%clk 0:01:30]}  Rxf7 {[%clk 0:00:45]} 31. Rg2+ {[%clk 0:01:29]}  Rg7 {[%clk 0:00:43]} 32. Ne2 {[%clk 0:01:24]}  e5 {[%clk 0:00:35]} 33. Bxf5 {[%clk 0:01:20]}  exd4 {[%clk 0:00:33]} 34. Be6+ {[%clk 0:01:16]}  Kf8 {[%clk 0:00:29]} 35. Qh8+ {[%clk 0:01:13]} 1-0

[Event "January 9 Late 2024"]
[Site "https://www.chess.com"]
[Date "2024.01.09"]
[Round "10"]
[White "Aliakbarov, Anar"]
[Black "Melamed, Daniel"]
[Result "1-0"]
[Board "70"]
[TimeControl "180+1"]
[WhiteFideId "13401858"]
[BlackFideId "3229076"]
[WhiteElo "2553"]
[BlackElo "2361"]
[WhiteTeam "TUR"]
[BlackTeam "AUS"]
[WhiteClock "0:00:29"]
[BlackClock "0:00:00"]

1. d4 {[%clk 0:03:00]}  Nf6 {[%clk 0:02:59]} 2. c4 {[%clk 0:03:00]}  e6 {[%clk 0:03:00]} 3. g3 {[%clk 0:02:59]}  d5 {[%clk 0:03:01]} 4. Bg2 {[%clk 0:02:58]}  dxc4 {[%clk 0:03:01]} 5. Nf3 {[%clk 0:02:57]}  a6 {[%clk 0:03:00]} 6. a4 {[%clk 0:02:55]}  Nc6 {[%clk 0:02:47]} 7. O-O {[%clk 0:02:54]}  Be7 {[%clk 0:02:47]} 8. Na3 {[%clk 0:02:44]}  Bd7 {[%clk 0:02:03]} 9. Nxc4 {[%clk 0:02:41]}  b5 {[%clk 0:01:55]} 10. Nce5 {[%clk 0:02:41]}  Rb8 {[%clk 0:01:55]} 11. axb5 {[%clk 0:02:36]}  axb5 {[%clk 0:01:56]} 12. Nxd7 {[%clk 0:02:29]}  Qxd7 {[%clk 0:01:55]} 13. Ra6 {[%clk 0:02:11]}  Nb4 {[%clk 0:01:53]} 14. Ne5 {[%clk 0:02:08]}  Qc8 {[%clk 0:01:20]} 15. Ra7 {[%clk 0:02:00]}  O-O {[%clk 0:01:15]} 16. Bd2 {[%clk 0:01:55]}  Rd8 {[%clk 0:00:55]} 17. Qb3 {[%clk 0:01:48]}  Rxd4 {[%clk 0:00:47]} 18. Bc3 {[%clk 0:01:48]}  Bc5 {[%clk 0:00:20]} 19. Bxd4 {[%clk 0:01:44]}  Bxd4 {[%clk 0:00:21]} 20. Qxb4 {[%clk 0:01:30]}  Bxa7 {[%clk 0:00:18]} 21. Nc6 {[%clk 0:01:29]}  Qd7 {[%clk 0:00:15]} 22. Nxa7 {[%clk 0:01:08]}  Nd5 {[%clk 0:00:11]} 23. Qc5 {[%clk 0:01:03]}  h6 {[%clk 0:00:08]} 24. Nc6 {[%clk 0:01:02]}  Rb6 {[%clk 0:00:07]} 25. Bxd5 {[%clk 0:01:02]}  exd5 {[%clk 0:00:06]} 26. Ne7+ {[%clk 0:01:02]}  Kh7 {[%clk 0:00:06]} 27. Nxd5 {[%clk 0:00:53]}  Rd6 {[%clk 0:00:05]} 28. e4 {[%clk 0:00:51]}  c6 {[%clk 0:00:04]} 29. Ne3 {[%clk 0:00:45]}  Rd2 {[%clk 0:00:04]} 30. b4 {[%clk 0:00:42]}  Qd4 {[%clk 0:00:01]} 31. Qf5+ {[%clk 0:00:39]}  Kg8 {[%clk 0:00:01]} 32. Rc1 {[%clk 0:00:32]}  Qxb4 {[%clk 0:00:01]} 33. Rxc6 {[%clk 0:00:29]}  Qb2 {[%clk 0:00:00]} 34. Rc8+ {[%clk 0:00:29]} 1-0

[Event "January 9 Late 2024"]
[Site "https://www.chess.com"]
[Date "2024.01.09"]
[Round "10"]
[White "Rangel, Daniel"]
[Black "Nita, Lucian"]
[Result "0-1"]
[Board "71"]
[TimeControl "180+1"]
[WhiteFideId "2124475"]
[BlackFideId "1206923"]
[WhiteElo "2552"]
[BlackElo "2355"]
[WhiteTeam "BRA"]
[BlackTeam "ROU"]
[WhiteClock "0:00:09"]
[BlackClock "0:00:10"]

1. c4 {[%clk 0:03:00]}  d6 {[%clk 0:03:00]} 2. g3 {[%clk 0:03:00]}  Nf6 {[%clk 0:03:00]} 3. Bg2 {[%clk 0:03:01]}  g6 {[%clk 0:03:00]} 4. Nc3 {[%clk 0:03:00]}  Bg7 {[%clk 0:03:01]} 5. e3 {[%clk 0:03:01]}  O-O {[%clk 0:03:02]} 6. Nge2 {[%clk 0:03:01]}  c5 {[%clk 0:03:01]} 7. O-O {[%clk 0:03:02]}  Nc6 {[%clk 0:03:01]} 8. b3 {[%clk 0:03:03]}  Rb8 {[%clk 0:03:00]} 9. d3 {[%clk 0:03:03]}  Bd7 {[%clk 0:03:01]} 10. Bb2 {[%clk 0:03:03]}  a6 {[%clk 0:03:01]} 11. Qd2 {[%clk 0:03:04]}  b5 {[%clk 0:03:01]} 12. Nd5 {[%clk 0:03:04]}  Nxd5 {[%clk 0:02:57]} 13. cxd5 {[%clk 0:03:05]}  Na7 {[%clk 0:02:50]} 14. Bxg7 {[%clk 0:03:04]}  Kxg7 {[%clk 0:02:50]} 15. e4 {[%clk 0:03:04]}  e5 {[%clk 0:02:47]} 16. f4 {[%clk 0:03:02]}  f6 {[%clk 0:02:45]} 17. h4 {[%clk 0:03:00]}  Bg4 {[%clk 0:02:43]} 18. Bf3 {[%clk 0:02:57]}  Bxf3 {[%clk 0:02:40]} 19. Rxf3 {[%clk 0:02:58]}  b4 {[%clk 0:02:32]} 20. f5 {[%clk 0:02:57]}  Nb5 {[%clk 0:02:25]} 21. g4 {[%clk 0:02:56]}  Rb7 {[%clk 0:02:09]} 22. Raf1 {[%clk 0:02:52]}  Rbf7 {[%clk 0:02:07]} 23. g5 {[%clk 0:02:42]}  fxg5 {[%clk 0:02:06]} 24. hxg5 {[%clk 0:02:43]}  gxf5 {[%clk 0:02:04]} 25. exf5 {[%clk 0:02:43]}  Rg8 {[%clk 0:01:47]} 26. f6+ {[%clk 0:02:41]}  Kf8 {[%clk 0:01:44]} 27. Rg3 {[%clk 0:02:22]}  Qa8 {[%clk 0:01:43]} 28. g6 {[%clk 0:02:14]}  hxg6 {[%clk 0:01:34]} 29. Qh6+ {[%clk 0:02:13]}  Ke8 {[%clk 0:01:33]} 30. Rxg6 {[%clk 0:02:13]}  Rxg6+ {[%clk 0:01:27]} 31. Qxg6 {[%clk 0:02:14]}  Qxd5 {[%clk 0:01:25]} 32. Qg8+ {[%clk 0:02:11]}  Kd7 {[%clk 0:01:23]} 33. Ng3 {[%clk 0:02:04]}  Nc7 {[%clk 0:01:17]} 34. Ne4 {[%clk 0:02:01]}  Qe6 {[%clk 0:01:06]} 35. Qg3 {[%clk 0:01:42]}  Rf8 {[%clk 0:00:51]} 36. Ng5 {[%clk 0:01:37]}  Qg8 {[%clk 0:00:44]} 37. f7 {[%clk 0:01:31]}  Qg6 {[%clk 0:00:42]} 38. Qg4+ {[%clk 0:01:30]}  Ne6 {[%clk 0:00:42]} 39. Rf5 {[%clk 0:01:21]}  Ke7 {[%clk 0:00:38]} 40. Kh2 {[%clk 0:01:14]}  Nxg5 {[%clk 0:00:36]} 41. Rxg5 {[%clk 0:01:14]}  Qh6+ {[%clk 0:00:34]} 42. Rh5 {[%clk 0:01:08]}  Qd2+ {[%clk 0:00:33]} 43. Kh3 {[%clk 0:00:57]}  Qxd3+ {[%clk 0:00:31]} 44. Kg2 {[%clk 0:00:55]}  Qd2+ {[%clk 0:00:29]} 45. Kh3 {[%clk 0:00:54]}  Qe3+ {[%clk 0:00:29]} 46. Kg2 {[%clk 0:00:54]}  Rxf7 {[%clk 0:00:28]} 47. Qh4+ {[%clk 0:00:54]}  Kd7 {[%clk 0:00:27]} 48. Rh7 {[%clk 0:00:41]}  Qf3+ {[%clk 0:00:25]} 49. Kg1 {[%clk 0:00:38]}  Qf1+ {[%clk 0:00:25]} 50. Kh2 {[%clk 0:00:38]}  Qe2+ {[%clk 0:00:18]} 51. Kg3 {[%clk 0:00:35]}  Rxh7 {[%clk 0:00:17]} 52. Qxh7+ {[%clk 0:00:35]}  Kc6 {[%clk 0:00:18]} 53. Qa7 {[%clk 0:00:33]}  Qe3+ {[%clk 0:00:16]} 54. Kg4 {[%clk 0:00:29]}  Qe2+ {[%clk 0:00:16]} 55. Kf5 {[%clk 0:00:26]}  Kd5 {[%clk 0:00:16]} 56. Qf7+ {[%clk 0:00:19]}  Kd4 {[%clk 0:00:14]} 57. Ke6 {[%clk 0:00:19]}  d5 {[%clk 0:00:14]} 58. Qb7 {[%clk 0:00:19]}  Qg4+ {[%clk 0:00:13]} 59. Kf6 {[%clk 0:00:17]}  Qh4+ {[%clk 0:00:12]} 60. Kg6 {[%clk 0:00:17]}  Qg4+ {[%clk 0:00:12]} 61. Kf6 {[%clk 0:00:17]}  c4 {[%clk 0:00:12]} 62. Qb6+ {[%clk 0:00:16]}  Kd3 {[%clk 0:00:11]} 63. Kxe5 {[%clk 0:00:16]}  Qe4+ {[%clk 0:00:11]} 64. Kf6 {[%clk 0:00:15]}  Qd4+ {[%clk 0:00:11]} 65. Ke6 {[%clk 0:00:09]}  Qxb6+ {[%clk 0:00:10]} 0-1

[Event "January 9 Late 2024"]
[Site "https://www.chess.com"]
[Date "2024.01.09"]
[Round "10"]
[White "Hajiyev, Kanan"]
[Black "Jose Iraeta, Alejandro"]
[Result "1-0"]
[Board "72"]
[TimeControl "180+1"]
[WhiteFideId "13404148"]
[BlackFideId "2226537"]
[WhiteElo "2549"]
[BlackElo "2279"]
[WhiteTeam "AZE"]
[BlackTeam "ESP"]
[WhiteClock "0:01:00"]
[BlackClock "0:00:00"]

1. d4 {[%clk 0:03:00]}  d5 {[%clk 0:02:59]} 2. c4 {[%clk 0:03:00]}  c6 {[%clk 0:02:59]} 3. cxd5 {[%clk 0:03:01]}  cxd5 {[%clk 0:03:00]} 4. Nc3 {[%clk 0:03:02]}  Nf6 {[%clk 0:03:00]} 5. Nf3 {[%clk 0:03:03]}  e6 {[%clk 0:03:01]} 6. Bg5 {[%clk 0:03:04]}  Be7 {[%clk 0:03:01]} 7. e3 {[%clk 0:03:04]}  O-O {[%clk 0:03:01]} 8. Bd3 {[%clk 0:03:04]}  Nc6 {[%clk 0:03:02]} 9. O-O {[%clk 0:03:04]}  h6 {[%clk 0:03:03]} 10. Bf4 {[%clk 0:03:04]}  Bd6 {[%clk 0:03:03]} 11. Bxd6 {[%clk 0:03:04]}  Qxd6 {[%clk 0:03:04]} 12. a3 {[%clk 0:03:05]}  e5 {[%clk 0:03:03]} 13. dxe5 {[%clk 0:03:05]}  Nxe5 {[%clk 0:03:04]} 14. Nxe5 {[%clk 0:03:06]}  Qxe5 {[%clk 0:03:05]} 15. Qf3 {[%clk 0:03:07]}  Rd8 {[%clk 0:03:03]} 16. Qg3 {[%clk 0:03:07]}  Qxg3 {[%clk 0:03:02]} 17. hxg3 {[%clk 0:03:08]}  d4 {[%clk 0:03:02]} 18. exd4 {[%clk 0:03:08]}  Rxd4 {[%clk 0:03:02]} 19. Rad1 {[%clk 0:03:09]}  Kf8 {[%clk 0:02:59]} 20. Nb5 {[%clk 0:03:05]}  Rd8 {[%clk 0:02:53]} 21. Bc4 {[%clk 0:03:00]}  Bg4 {[%clk 0:02:45]} 22. f3 {[%clk 0:02:59]}  Bf5 {[%clk 0:02:42]} 23. Nd6 {[%clk 0:02:44]}  Bg6 {[%clk 0:02:38]} 24. Nxb7 {[%clk 0:02:32]}  Rxd1 {[%clk 0:02:14]} 25. Rxd1 {[%clk 0:02:33]}  Rb8 {[%clk 0:02:14]} 26. Rd8+ {[%clk 0:02:33]}  Rxd8 {[%clk 0:02:12]} 27. Nxd8 {[%clk 0:02:33]}  Nd7 {[%clk 0:02:06]} 28. Nc6 {[%clk 0:02:30]}  Nb6 {[%clk 0:01:51]} 29. Bb3 {[%clk 0:02:30]}  a6 {[%clk 0:01:49]} 30. a4 {[%clk 0:02:18]}  f6 {[%clk 0:01:37]} 31. Nb4 {[%clk 0:02:12]}  a5 {[%clk 0:01:30]} 32. Nc6 {[%clk 0:02:06]}  Be8 {[%clk 0:01:30]} 33. Nxa5 {[%clk 0:02:06]}  Bxa4 {[%clk 0:01:24]} 34. Bxa4 {[%clk 0:02:02]}  Nxa4 {[%clk 0:01:24]} 35. b3 {[%clk 0:02:02]}  Nc3 {[%clk 0:01:22]} 36. Kf2 {[%clk 0:02:03]}  Ke7 {[%clk 0:01:22]} 37. Ke3 {[%clk 0:02:01]}  Kd6 {[%clk 0:01:21]} 38. Kd3 {[%clk 0:01:54]}  Nd5 {[%clk 0:01:11]} 39. Nb7+ {[%clk 0:01:39]}  Kc6 {[%clk 0:00:56]} 40. Nd8+ {[%clk 0:01:36]}  Kb5 {[%clk 0:00:54]} 41. Ne6 {[%clk 0:01:33]}  g6 {[%clk 0:00:54]} 42. Nf4 {[%clk 0:01:17]}  Ne7 {[%clk 0:00:25]} 43. Kc3 {[%clk 0:01:17]}  g5 {[%clk 0:00:22]} 44. Ne2 {[%clk 0:01:14]}  Nd5+ {[%clk 0:00:21]} 45. Kc2 {[%clk 0:01:12]}  Ne3+ {[%clk 0:00:22]} 46. Kc3 {[%clk 0:01:11]}  Nxg2 {[%clk 0:00:22]} 47. Nd4+ {[%clk 0:01:12]}  Kc5 {[%clk 0:00:20]} 48. Nf5 {[%clk 0:01:13]}  h5 {[%clk 0:00:20]} 49. b4+ {[%clk 0:01:13]}  Kb5 {[%clk 0:00:20]} 50. Nd6+ {[%clk 0:01:12]}  Kc6 {[%clk 0:00:20]} 51. Ne4 {[%clk 0:01:13]}  h4 {[%clk 0:00:20]} 52. gxh4 {[%clk 0:01:11]}  gxh4 {[%clk 0:00:20]} 53. Nxf6 {[%clk 0:01:11]}  Ne3 {[%clk 0:00:19]} 54. Kd3 {[%clk 0:01:04]}  Nd5 {[%clk 0:00:16]} 55. Nxd5 {[%clk 0:01:01]}  h3 {[%clk 0:00:13]} 56. Ne7+ {[%clk 0:00:59]}  Kd7 {[%clk 0:00:11]} 57. Nf5 {[%clk 0:00:59]}  h2 {[%clk 0:00:00]} 58. Ng3 {[%clk 0:01:00]} 1-0